fUSD/lending_fUSD_20251126
["ID","MTS","AMOUNT","RATE_DAILY","PERIOD"]
[394949511,1764191446205,-250.0,0.00018,2]
[394949512,1764191446215,-250.0,0.00018,2]
[394949513,1764191446224,-250.0,0.00018,2]
[394949514,1764191446234,-250.0,0.00018,2]
[394949515,1764191446244,-250.0,0.00018,2]
[394949516,1764191446253,-250.0,0.00018,2]
[394949517,1764191446263,-250.0,0.00018,2]
[394949518,1764191446273,-250.0,0.00018,2]
[394949519,1764191446283,-250.0,0.00018,2]
[394949520,1764191446292,-250.0,0.00018,2]
[394949521,1764191446302,-250.0,0.00018,2]
[394949522,1764191446312,-250.0,0.00018,2]
[394949523,1764191446321,-250.0,0.00018,2]
[394949526,1764191446334,-250.0,0.00018,2]
[394949528,1764191446343,-250.0,0.00018,2]
[394949530,1764191446353,-250.0,0.00018,2]
[394949532,1764191446362,-250.0,0.00018,2]
[394949533,1764191446372,-250.0,0.00018,2]
[394949535,1764191446382,-250.0,0.00018,2]
[394949537,1764191446391,-250.0,0.00018,2]
[394949539,1764191446401,-250.0,0.00018,2]
[394949541,1764191446411,-250.0,0.00018,2]
[394949543,1764191446421,-250.0,0.00018,2]
[394949545,1764191446434,-250.0,0.00018,2]
[394949547,1764191446443,-250.0,0.00018,2]
[394949549,1764191446453,-250.0,0.00018,2]
[394949551,1764191446463,-250.0,0.00018,2]
[394949553,1764191446474,-250.0,0.00018,2]
[394949555,1764191446484,-250.0,0.00018,2]
[394949557,1764191446494,-250.0,0.00018,2]
[394949559,1764191446506,-250.0,0.00018,2]
[394949561,1764191446515,-250.0,0.00018,2]
[394949563,1764191446524,-286.3,0.00018,2]
[394949566,1764191446533,-29965.99139011,0.00018,2]
[394949568,1764191446550,-8467.25462014,0.00018,2]
[394950872,1764191881723,-535.38689541,0.00016598,2]
[394950873,1764191881752,-500.0,0.00016598,2]
[394950874,1764191881783,-500.0,0.00016598,2]
[394950875,1764191881812,-250.0,0.00016785,2]
[394950876,1764191881842,-364.81905805,0.00016912,2]
[394950877,1764191881872,-1200.0,0.00016972,2]
[394950878,1764191881902,-300.0,0.00016972,2]
[394950879,1764191881931,-500.0,0.00016973,2]
[394950880,1764191881959,-500.0,0.00016973,2]
[394950881,1764191881988,-249.92306549,0.00016973,2]
[394950882,1764191882467,-199.7519621,0.00016973,2]
[394950883,1764191882498,-511.01960502,0.00016973,2]
[394950884,1764191882526,-500.0,0.00016973,2]
[394950885,1764191882555,-300.0,0.00016996,2]
[394950886,1764191882588,-1200.0,0.00016996,2]
[394950887,1764191882619,-510.0,0.00016996,2]
[394950888,1764191882650,-500.0,0.00016997,2]
[394950889,1764191882679,-183.22754585,0.00016997,2]
[394950890,1764191882709,-198.42977225,0.00016997,2]
[394950891,1764191882737,-336.63893908,0.00016997,2]
[394950892,1764191882765,-250.02703424,0.00016997,2]
[394950893,1764191882798,-121.82028292,0.00016997,2]
[394950894,1764191882834,-378.17971708,0.00016997,2]
[394950895,1764191882865,-297.47842436,0.00016997,2]
[394950896,1764191882895,-500.0,0.00016997,2]
[394950897,1764191882924,-500.0,0.00016997,2]
[394950898,1764191882952,-500.0,0.00016997,2]
[394950899,1764191882986,-500.0,0.00016997,2]
[394950900,1764191883016,-500.0,0.00016997,2]
[394950901,1764191883049,-617.07838674,0.00016997,2]
[394950902,1764191883085,-500.0,0.00016997,2]
[394950903,1764191883118,-500.0,0.00016997,2]
[394950904,1764191883162,-500.0,0.00016997,2]
[394950905,1764191883198,-500.0,0.00016997,2]
[394950906,1764191883227,-564.40116519,0.00016997,2]
[394950907,1764191883256,-500.0,0.00016997,2]
[394950908,1764191883297,-432.5526551,0.00016997,2]
[394950909,1764191883332,-500.0,0.00016997,2]
[394950910,1764191883367,-500.0,0.00016997,2]
[394950911,1764191883401,-500.0,0.00016997,2]
[394950912,1764191883435,-500.0,0.00016997,2]
[394950913,1764191883470,-500.0,0.00016997,2]
[394950914,1764191883577,-500.0,0.00016997,2]
[394950915,1764191883613,-500.0,0.00016997,2]
[394950916,1764191883644,-500.0,0.00016997,2]
[394950917,1764191883685,-500.0,0.00016997,2]
[394950918,1764191883719,-500.0,0.00016997,2]
[394950919,1764191883750,-500.0,0.00016997,2]
[394950920,1764191883785,-500.0,0.00016997,2]
[394950921,1764191883826,-500.0,0.00016997,2]
[394950922,1764191883869,-151.53241335,0.00016997,2]
[394950923,1764191883910,-500.0,0.00016997,2]
[394950924,1764191883948,-196.9451733,0.00016997,2]
[394950925,1764191884155,-300.0,0.00016972,2]
[394950926,1764191884192,-303.0548267,0.00016997,2]
[394950927,1764191884230,-500.0,0.00016997,2]
[394950928,1764191884266,-500.0,0.00016997,2]
[394950929,1764191884304,-500.0,0.00016997,2]
[394950930,1764191884343,-500.0,0.00016997,2]
[394950931,1764191884383,-500.0,0.00016997,2]
[394950932,1764191884421,-500.0,0.00016997,2]
[394950933,1764191884457,-500.0,0.00016997,2]
[394950934,1764191884499,-500.0,0.00016997,2]
[394950935,1764191884537,-293.9003466,0.00016997,2]
[394950936,1764191887075,-206.0996534,0.00016997,2]
[394950937,1764191887111,-500.0,0.00016997,2]
[394950938,1764191887144,-500.0,0.00016997,2]
[394950939,1764191887177,-500.0,0.00016997,2]
[394950940,1764191887211,-409.37633046,0.00016997,2]
[394950941,1764191887244,-500.0,0.00016997,2]
[394950942,1764191887277,-500.0,0.00016997,2]
[394950943,1764191887309,-500.0,0.00016997,2]
[394950944,1764191887343,-500.0,0.00016997,2]
[394950945,1764191887375,-500.0,0.00016997,2]
[394950946,1764191887410,-269.05803228,0.00016997,2]
[394950947,1764191887454,-230.94196772,0.00016997,2]
[394950948,1764191887488,-500.0,0.00016997,2]
[394950949,1764191887521,-500.0,0.00016997,2]
[394950950,1764191887555,-500.0,0.00016997,2]
[394950951,1764191887591,-500.0,0.00016997,2]
[394950952,1764191887625,-500.0,0.00016997,2]
[394950953,1764191887659,-500.0,0.00016997,2]
[394950954,1764191887693,-500.0,0.00016997,2]
[394950955,1764191887726,-500.0,0.00016997,2]
[394950956,1764191887759,-500.0,0.00016997,2]
[394950957,1764191887795,-38.12606456,0.00016997,2]
[394950958,1764191887840,-461.87393544,0.00016997,2]
[394950959,1764191887874,-500.0,0.00016997,2]
[394950960,1764191887908,-500.0,0.00016997,2]
[394950961,1764191887943,-500.0,0.00016997,2]
[394950962,1764191887978,-500.0,0.00016997,2]
[394950963,1764191888012,-500.0,0.00016997,2]
[394950964,1764191888049,-500.0,0.00016997,2]
[394950965,1764191888086,-500.0,0.00016997,2]
[394950966,1764191888122,-500.0,0.00016997,2]
[394950967,1764191888158,-500.0,0.00016997,2]
[394950968,1764191894188,-500.0,0.00016997,2]
[394950969,1764191894222,-500.0,0.00016997,2]
[394950970,1764191894254,-500.0,0.00016997,2]
[394950971,1764191894286,-500.0,0.00016997,2]
[394950972,1764191894322,-590.93763305,0.00016997,2]
[394950973,1764191894355,-500.0,0.00016997,2]
[394950974,1764191894391,-500.0,0.00016997,2]
[394950975,1764191894424,-500.0,0.00016997,2]
[394950976,1764191894456,-250.0,0.00016998,2]
[394950977,1764191948405,7603.795723,7.945e-05,2]
[394950978,1764192319604,2396.214277,9e-05,2]
[394950979,1764192319628,605.09863507,9e-05,2]
[394950980,1764192378463,1212.26695085,0.000209,30]
[394950981,1764192460784,153.54,8.095e-05,2]
[394950982,1764192460997,153.54,8.601e-05,2]
[394950983,1764192461242,153.54,9.107e-05,2]
[394950984,1764192461661,153.54,9.613e-05,2]
[394950985,1764192461855,153.54,0.00010119,2]
[394950986,1764192462055,153.54,0.00010625,2]
[394950987,1764192462261,153.54,0.00011131,2]
[394950988,1764192462471,153.54,0.00011637,2]
[394950989,1764192462709,153.54,0.00012143,2]
[394950990,1764192462953,153.54,0.00012649,2]
[394950991,1764192463164,153.54,0.00013155,2]
[394950992,1764192463385,153.54,0.00013661,2]
[394950993,1764192463815,153.54,0.00014167,2]
[394950994,1764192464232,153.54,0.00014673,2]
[394951003,1764192631950,-153.54,0.00015179,2]
[394951004,1764192631959,-250.0,0.00015432,2]
[394951005,1764192631969,-153.54,0.00015685,2]
[394951006,1764192631978,-1200.0,0.00015883,2]
[394951007,1764192631988,-205.77146012,0.00015884,2]
[394951008,1764192632028,-5141.87520505,0.00015884,2]
[394951009,1764192632040,-1378.190429,0.00015884,2]
[394951010,1764192632077,-619.35433313,0.00015884,2]
[394951011,1764192632127,-110.4999067,0.00015884,2]
[394951012,1764192632137,-150.0,0.00015937,2]
[394951013,1764192632146,-571.72866142,0.00015965,2]
[394951014,1764192632207,-286.98,0.00015965,2]
[394951015,1764192632217,-141.29133858,0.00015965,2]
[394951016,1764192632226,-153.54,0.00016191,2]
[394951017,1764192632235,-300.0,0.00016199,2]
[394951018,1764192632244,-300.0,0.00016199,2]
[394951019,1764192632254,-300.0,0.00016199,2]
[394951020,1764192632263,-5000.00903548,0.000162,5]
[394951021,1764192632271,-999.0,0.00016499,3]
[394951022,1764192632281,-250.0,0.00016697,2]
[394951023,1764192632290,-300.0,0.00016697,2]
[394951024,1764192632299,-150.64,0.00016845,2]
[394951025,1764192632308,-3763.6034685,0.0001688,2]
[394951026,1764192632318,-550.0,0.00016897,2]
[394951028,1764192632327,-294.61471259,0.00016897,2]
[394951030,1764192632336,-500.0,0.00016897,2]
[394951032,1764192632344,-500.0,0.00016897,2]
[394951033,1764192632354,-500.0,0.00016897,2]
[394951035,1764192632363,-500.0,0.00016897,2]
[394951037,1764192632372,-500.0,0.00016897,2]
[394951039,1764192632387,-500.0,0.00016897,2]
[394951041,1764192632399,-500.0,0.00016897,2]
[394951043,1764192632408,-3733.74618866,0.00016898,2]
[394951044,1764192632421,-877.88000038,0.00016898,2]
[394951045,1764192632431,-517.52587944,0.00016898,2]
[394951053,1764192637962,-384.83885913,0.00016645,2]
[394951055,1764192637971,-500.0,0.00016897,2]
[394951057,1764192637981,-500.0,0.00016897,2]
[394951059,1764192637990,-500.0,0.00016897,2]
[394951061,1764192637999,-500.0,0.00016897,2]
[394951063,1764192638009,-586.04481344,0.00016897,2]
[394951065,1764192638018,-500.0,0.00016897,2]
[394951067,1764192638028,-500.0,0.00016897,2]
[394951069,1764192638038,-500.0,0.00016897,2]
[394951072,1764192638047,-492.50052741,0.00016897,2]
[394951074,1764192638063,-7.49947259,0.00016897,2]
[394951076,1764192638073,-500.0,0.00016897,2]
[394951078,1764192638083,-381.39516301,0.00016897,2]
[394951081,1764192638096,-118.60483699,0.00016897,2]
[394951083,1764192638105,-500.0,0.00016897,2]
[394951085,1764192638115,-500.0,0.00016897,2]
[394951087,1764192638125,-500.0,0.00016897,2]
[394951088,1764192638134,-500.0,0.00016897,2]
[394951089,1764192638144,-500.0,0.00016897,2]
[394951090,1764192638153,-500.0,0.00016897,2]
[394951091,1764192638163,-500.0,0.00016897,2]
[394951092,1764192638173,-500.0,0.00016897,2]
[394951093,1764192638183,-500.0,0.00016897,2]
[394951094,1764192638192,-502.94283152,0.00016898,2]
[394951095,1764192638206,-1000.0,0.00016898,2]
[394951096,1764192638216,-4085.6031,0.00016898,2]
[394951097,1764192638226,-6667.1886,0.00016898,2]
[394951098,1764192638236,-235.1519,0.00016898,2]
[394951099,1764192638246,-280.6993,0.00016898,2]
[394951100,1764192638256,-88507.5826,0.00016898,2]
[394951101,1764192638266,-2500.0,0.00016898,2]
[394951102,1764192638275,-304.60583041,0.00016899,2]
[394951103,1764192638285,-174.52113894,0.000169,2]
[394951104,1764192638295,-1413.92900423,0.000169,2]
[394951105,1764192638305,-771.84,0.00016912,2]
[394951107,1764192638314,-598.70455592,0.00016912,2]
[394951109,1764192638324,-500.0,0.00016973,2]
[394951111,1764192638334,-500.0,0.00016973,2]
[394951113,1764192638343,-500.0,0.00016973,2]
[394951115,1764192638353,-500.0,0.00016973,2]
[394951117,1764192638363,-500.0,0.00016973,2]
[394951120,1764192638373,-500.0,0.00016973,2]
[394951122,1764192638383,-617.86212032,0.00016973,2]
[394951124,1764192638393,-500.0,0.00016973,2]
[394951125,1764192638403,-284.0,0.00016974,2]
[394951126,1764192638414,-802.98707302,0.0001699,2]
[394951127,1764192638424,-802.98707302,0.0001699,2]
[394951128,1764192638433,-802.98707302,0.0001699,2]
[394951129,1764192638443,-10249.6555118,0.00016997,2]
[394951130,1764192638452,-2227.79207945,0.00016997,2]
[394951131,1764192638462,-365.32199999,0.00016997,2]
[394951132,1764192638472,-250.67117171,0.00016997,2]
[394951133,1764192638482,-585.64725736,0.00016997,2]
[394951134,1764192638492,-500.0,0.00016998,2]
[394951135,1764192638503,-500.0,0.00016998,2]
[394951136,1764192638512,-500.0,0.00016998,2]
[394951137,1764192638523,-500.0,0.00016998,2]
[394951138,1764192638532,-226.5,0.00016998,2]
[394951139,1764192638541,-236.58693075,0.00016998,2]
[394951140,1764192638551,-1000.0,0.00016998,2]
[394951141,1764192638561,-741.60800904,0.00016998,2]
[394951142,1764192638578,-500.0,0.00016998,2]
[394951143,1764192638588,-500.0,0.00016998,2]
[394951144,1764192638598,-500.0,0.00016998,2]
[394951145,1764192638609,-1778.66,0.00016998,2]
[394951146,1764192638623,-1778.66,0.00016998,2]
[394951147,1764192638633,-1778.66,0.00016998,2]
[394951148,1764192638643,-760000.0,0.00016998,2]
[394951149,1764192638653,-300.0,0.00016999,2]
[394951150,1764192638663,-1304.90558406,0.00016999,5]
[394951151,1764192638672,-250.0,0.00017,2]
[394951152,1764192638682,-5639124.64978261,0.00017,2]
[394951153,1764192638920,-252.52558488,0.00017,2]
[394951154,1764192640090,-562.73,0.00017,2]
[394951155,1764192640258,-2050.77884625,0.00017,2]
[394951156,1764192640317,-664.60139185,0.00017,2]
[394951157,1764192640328,-4804.24640369,0.00017,2]
[394951158,1764192640377,-6865.63692011,0.00017,2]
[394951159,1764192640388,-817.31434984,0.00017,2]
[394951160,1764192640415,-900.07,0.00017,2]
[394951161,1764192640490,-1341.0,0.00017,2]
[394951162,1764192640502,-1605.04397606,0.00017,2]
[394951163,1764192640512,-251.37,0.00017,2]
[394951180,1764192643914,-293.0,0.00016986,2]
[394951181,1764192643923,-2050.68669856,0.00017,2]
[394951182,1764192643935,-1233.02197146,0.00017,2]
[394951183,1764192644918,-3583.24167825,0.00017,2]
[394951184,1764192644929,-317.74585203,0.00017,2]
[394951185,1764192645039,-451.395,0.00017,2]
[394951205,1764192646161,-4727.28314105,0.00017,2]
[394951209,1764192646390,-1800.0,0.00017,2]
[394951210,1764192646449,-4328.40000409,0.00017,2]
[394951221,1764192650813,154.73,0.00019178,30]
[394951222,1764193411251,5522.0,0.000155,5]
[394951223,1764193415644,-166.66,0.00014995,2]
[394951224,1764193415665,-592.51247545,0.000151,3]
[394951225,1764193418390,-887.72604781,0.000151,3]
[394951226,1764193420427,-168.08758059,0.000151,3]
[394951227,1764193422544,-166.66,0.000151,3]
[394951228,1764193424145,-340.47068492,0.000151,3]
[394951229,1764193425639,-250.0,0.000151,3]
[394951230,1764193427822,-166.66,0.000151,3]
[394951231,1764193442704,316.0,0.000153,5]
[394951247,1764193832175,-250.0,0.0001522,2]
[394951248,1764193832185,-150.0,0.00015288,2]
[394951249,1764193832194,-158.13716324,0.00015288,2]
[394951250,1764193832203,-166.66,0.00015311,2]
[394951251,1764193832212,-14.92641076,0.00015433,2]
[394951252,1764193832235,-186.92814566,0.00015433,2]
[394951253,1764193832245,-166.66,0.00015626,2]
[394951254,1764193832254,-200.0,0.00015808,2]
[394951255,1764193832263,-166.66,0.00015942,2]
[394951256,1764193832273,-44.1517011,0.00015964,2]
[394951257,1764193832285,-587.3148749,0.00015964,2]
[394951258,1764193832294,-158.65437162,0.00015984,2]
[394951259,1764193832307,-500.0,0.00016028,2]
[394951260,1764193832317,-241.71931971,0.00016241,2]
[394951261,1764193832326,-166.66,0.00016258,2]
[394951262,1764193832335,-158.6543716,0.00016291,2]
[394951263,1764193832344,-225.0,0.00016312,2]
[394951264,1764193832353,-232.18923519,0.00016333,2]
[394951265,1764193832365,-967.81076481,0.00016333,2]
[394951266,1764193832375,-300.0,0.00016333,2]
[394951267,1764193832384,-610.0,0.00016334,2]
[394951268,1764193832393,-634.90052308,0.00016334,2]
[394951269,1764193832404,-2116.09947692,0.00016334,2]
[394951270,1764193832413,-314.0,0.00016436,2]
[394951271,1764193832423,-1077.0070461,0.00016438,2]
[394951289,1764193838208,-191.433,0.0001621,2]
[394951290,1764193838218,-1187.0329539,0.00016438,2]
[394951291,1764193838228,-225.0,0.00016567,2]
[394951292,1764193838241,-166.66,0.00016574,2]
[394951293,1764193838251,-429.8740461,0.00016597,2]
[394951294,1764193838262,-451.499097,0.00016597,2]
[394951295,1764193838305,-414.18025489,0.00016597,2]
[394951331,1764193840403,-1204.44660201,0.00016597,2]
[394951332,1764193840414,-158.6543716,0.00016598,2]
[394951333,1764193840423,-157.06902501,0.00016598,2]
[394951334,1764193840434,-314.02960993,0.00016598,2]
[394951335,1764193840443,-225.0,0.00016604,2]
[394951336,1764193840454,-321.7,0.00016662,2]
[394951337,1764193840464,-250.0,0.00016668,2]
[394951338,1764193840475,-250.0,0.00016668,2]
[394951339,1764193840485,-213.52637632,0.00016673,2]
[394951340,1764193840494,-406.97735465,0.00016673,2]
[394951341,1764193840503,-500.0,0.00016673,2]
[394951342,1764193840512,-503.20529526,0.00016673,2]
[394951343,1764193840521,-500.0,0.00016673,2]
[394951344,1764193840532,-500.0,0.00016673,2]
[394951345,1764193840541,-500.0,0.00016673,2]
[394951346,1764193840550,-500.0,0.00016673,2]
[394951347,1764193840559,-345.0,0.00016696,2]
[394951348,1764193840569,-1167.92,0.00016696,2]
[394951349,1764193840578,-500.0,0.00016696,2]
[394951350,1764193840587,-180.48353092,0.00016696,2]
[394951351,1764193840596,-183.35452023,0.00016696,2]
[394951352,1764193840605,-500.0,0.00016696,2]
[394951353,1764193840616,-500.0,0.00016696,2]
[394951354,1764193840625,-160.98778428,0.00016696,2]
[394951355,1764193840635,-302.77298444,0.00016696,2]
[394951356,1764193840644,-500.0,0.00016696,2]
[394951357,1764193840653,-161.98091605,0.00016696,2]
[394951358,1764193840662,-500.0,0.00016696,2]
[394951359,1764193840671,-500.0,0.00016696,2]
[394951360,1764193840681,-500.0,0.00016696,2]
[394951361,1764193840690,-500.0,0.00016696,2]
[394951362,1764193840699,-500.0,0.00016696,2]
[394951363,1764193840709,-500.0,0.00016696,2]
[394951364,1764193840721,-500.0,0.00016696,2]
[394951366,1764193840730,-500.0,0.00016696,2]
[394951367,1764193840739,-500.0,0.00016696,2]
[394951368,1764193840748,-500.0,0.00016696,2]
[394951369,1764193840757,-500.0,0.00016696,2]
[394951370,1764193840766,-500.0,0.00016696,2]
[394951371,1764193840776,-508.60448134,0.00016696,2]
[394951372,1764193840786,-500.0,0.00016696,2]
[394951374,1764193840795,-500.0,0.00016696,2]
[394951375,1764193840804,-500.0,0.00016696,2]
[394951376,1764193840813,-500.0,0.00016696,2]
[394951377,1764193841000,-500.0,0.00016696,2]
[394951378,1764193841010,-500.0,0.00016696,2]
[394951379,1764193841019,-500.0,0.00016696,2]
[394951380,1764193841030,-500.0,0.00016696,2]
[394951381,1764193841040,-500.0,0.00016696,2]
[394951382,1764193841052,-500.0,0.00016696,2]
[394951383,1764193841062,-500.0,0.00016696,2]
[394951384,1764193841073,-500.0,0.00016696,2]
[394951385,1764193841082,-500.0,0.00016696,2]
[394951386,1764193841092,-500.0,0.00016696,2]
[394951387,1764193841102,-500.0,0.00016696,2]
[394951388,1764193841111,-300.0,0.00016696,2]
[394951389,1764193841121,-500.0,0.00016696,2]
[394951390,1764193841131,-500.0,0.00016696,2]
[394951391,1764193841140,-500.0,0.00016696,2]
[394951392,1764193841150,-500.0,0.00016696,2]
[394951393,1764193841159,-760000.0,0.00016697,2]
[394951394,1764193841168,-1000.0,0.00016698,2]
[394951395,1764193841178,-18725.3164,0.00016698,2]
[394951396,1764193841187,-1000.0,0.00016698,2]
[394951397,1764193841196,-3347.14638035,0.00016728,2]
[394951398,1764193841204,-225.0,0.00016729,2]
[394951399,1764193841213,-266.5301016,0.0001673,2]
[394951400,1764193841223,-300.0,0.00016742,2]
[394951401,1764193841232,-300.0,0.00016742,2]
[394951402,1764193841247,-300.0,0.00016742,2]
[394951403,1764193841257,-300.0,0.00016742,2]
[394951404,1764193841266,-443.54542982,0.00016742,2]
[394951405,1764193841276,-314.02960993,0.00016749,2]
[394951406,1764193841286,-500.0,0.00016773,2]
[394951407,1764193841295,-500.0,0.00016773,2]
[394951408,1764193841305,-237.01110095,0.00016773,2]
[394951409,1764193841315,-500.0,0.00016773,2]
[394951410,1764193841324,-500.0,0.00016773,2]
[394951411,1764193841334,-537.0,0.00016783,2]
[394951412,1764193841343,-10622.70211054,0.00016797,2]
[394951413,1764193841352,-150.0,0.00016797,2]
[394951414,1764193841361,-150.0,0.00016797,2]
[394951415,1764193841371,-500.0,0.00016797,2]
[394951416,1764193841380,-150.0,0.00016797,2]
[394951417,1764193841389,-150.0,0.00016797,2]
[394951418,1764193841398,-150.0,0.00016797,2]
[394951419,1764193841407,-293.69938487,0.00016797,2]
[394951420,1764193841447,-150.0,0.00016797,2]
[394951421,1764193841456,-150.0,0.00016797,2]
[394951422,1764193841466,-150.0,0.00016797,2]
[394951423,1764193841475,-150.0,0.00016797,2]
[394951424,1764193841484,-150.0,0.00016797,2]
[394951425,1764193841494,-150.0,0.00016797,2]
[394951426,1764193841503,-150.0,0.00016797,2]
[394951427,1764193841512,-500.0,0.00016797,2]
[394951428,1764193841521,-150.0,0.00016797,2]
[394951429,1764193841531,-150.0,0.00016797,2]
[394951430,1764193841540,-500.0,0.00016797,2]
[394951431,1764193841550,-500.0,0.00016798,2]
[394951432,1764193841559,-500.0,0.00016798,2]
[394951433,1764193841568,-500.0,0.00016798,2]
[394951434,1764193841578,-500.0,0.00016798,2]
[394951435,1764193841587,-500.0,0.00016798,2]
[394951436,1764193841596,-500.0,0.00016798,2]
[394951437,1764193841606,-500.0,0.00016798,2]
[394951438,1764193841615,-500.0,0.00016798,2]
[394951439,1764193841624,-500.0,0.00016798,2]
[394951440,1764193841634,-500.0,0.00016798,2]
[394951441,1764193841643,-500.0,0.00016798,2]
[394951442,1764193841652,-500.0,0.00016798,2]
[394951443,1764193841662,-500.0,0.00016798,2]
[394951444,1764193841682,-500.0,0.00016798,2]
[394951445,1764193841692,-500.0,0.00016798,2]
[394951446,1764193841701,-500.0,0.00016798,2]
[394951447,1764193841711,-500.0,0.00016798,2]
[394951448,1764193841721,-500.0,0.00016798,2]
[394951449,1764193841731,-500.0,0.00016798,2]
[394951450,1764193841742,-630.9506587,0.00016798,2]
[394951451,1764193841751,-500.0,0.00016798,2]
[394951452,1764193841761,-500.0,0.00016798,2]
[394951453,1764193841770,-504.41433672,0.00016798,2]
[394951454,1764193841780,-500.0,0.00016798,2]
[394951455,1764193841790,-500.0,0.00016798,2]
[394951456,1764193841800,-500.0,0.00016798,2]
[394951457,1764193841810,-500.0,0.00016798,2]
[394951458,1764193841820,-500.0,0.00016798,2]
[394951459,1764193841830,-1632.95,0.00016798,2]
[394951460,1764193841840,-1632.95,0.00016798,2]
[394951461,1764193841849,-1632.95,0.00016798,2]
[394951462,1764193841859,-500.0,0.00016798,2]
[394951463,1764193841868,-500.0,0.00016798,2]
[394951464,1764193841878,-500.0,0.00016798,2]
[394951465,1764193841888,-276.75564382,0.00016849,2]
[394951466,1764193841902,-152.19317623,0.00016849,2]
[394951467,1764193841911,-150.0,0.00016849,2]
[394951468,1764193841921,-500.0,0.00016849,2]
[394951469,1764193841931,-150.0,0.00016849,2]
[394951470,1764193841941,-150.0,0.00016849,2]
[394951471,1764193841950,-150.0,0.00016849,2]
[394951472,1764193841959,-157.06902496,0.0001685,2]
[394951473,1764193841969,-169.0,0.00016856,2]
[394951474,1764193841979,-3347.14638028,0.00016859,2]
[394951475,1764193841989,-266.53010158,0.00016898,2]
[394951476,1764193841999,-21666.1952,0.00016898,2]
[394951477,1764193842009,-537.0,0.00016899,2]
[394951478,1764193842018,-179.78326477,0.000169,2]
[394951479,1764193842028,-314.02960993,0.000169,2]
[394951480,1764193842038,-225.0,0.00016915,2]
[394951481,1764193842047,-150.0,0.00016934,2]
[394951482,1764193842057,-500.0,0.00016934,2]
[394951483,1764193842068,-150.0,0.00016934,2]
[394951484,1764193842079,-150.0,0.00016934,2]
[394951485,1764193842090,-150.0,0.00016934,2]
[394951486,1764193842099,-150.0,0.00016934,2]
[394951487,1764193842110,-150.0,0.00016934,2]
[394951488,1764193842119,-155.30279414,0.00016934,2]
[394951489,1764193842128,-200.0,0.00016934,2]
[394951490,1764193842138,-150.0,0.00016934,2]
[394951491,1764193842147,-400.0,0.00016934,2]
[394951492,1764193842156,-150.0,0.00016934,2]
[394951493,1764193842165,-600.0,0.00016934,2]
[394951494,1764193842175,-1167.92,0.0001697,2]
[394951495,1764193842184,-500.0,0.00016973,2]
[394951496,1764193842195,-500.0,0.00016973,2]
[394951497,1764193842204,-500.0,0.00016973,2]
[394951498,1764193842214,-502.20492296,0.00016973,2]
[394951499,1764193842225,-500.0,0.00016973,2]
[394951500,1764193842240,-500.0,0.00016973,2]
[394951501,1764193842250,-500.0,0.00016973,2]
[394951502,1764193842259,-501.07543735,0.00016973,2]
[394951503,1764193842269,-500.0,0.00016973,2]
[394951504,1764193842279,-502.92078827,0.00016973,2]